Workbook

Sheet 2024
F1: Cost Per Sq Ft
A2: 25150 Canal Rd. Back Storage Units
A3: Tenants
B4: $/sf YTD | C4: SF | D4: Monthly | E4: 2024 | F4: 2024 Monthly
A5: Storage Unit Rents | B5: =E5/C5 -> 8.554166667 | C5: 12000 | D5: 8600 | E5: 102650 | F5: 1854
A6: Parking Space Rents | C6: 0 | D6: 725 | E6: 7250 | F6: 1200
A7: Shipping Container & Covered Space | C7: 0 | D7: 1850 | E7: 18500 | F7: 1250.09
C8: 0 | F8: 2521
C9: 0 | F9: 2433.33
F10: 500
A11: Total SF | B11: =E11/C11 -> 10.7 | C11: 12000 | D11: =SUM(D5:D10) -> 11175 | E11: =SUM(E5:E10) -> 128400
A12: Income:
A13: Gross Income Effective Gross | E13: =E11 -> 128400 | F13: =SUM(F5:F10)*12 -> 117101.04
A14: Income Total Expenses | E14: =E23 -> 14639.08 | F14: =$E23 -> 14639.08
A15: Net Operating Income | E15: =E13-E14 -> 113760.92 | F15: =F13-F14 -> 102461.96
A16: Expenses: | B16: Per Square Foot | C16: SF | D16: Monthly | E16: 2024
A17: Taxes | B17: =E17/C17 -> 0.61784 | C17: 12000 | D17: =E17/12 -> 617.84 | E17: 7414.08 | F17: 6155.82
A18: Insurance | B18: =E18/12000 -> 0.3 | C18: 12000 | D18: =E18/12 -> 300 | E18: 3600 | F18: 3400
A19: Water | B19: =E19/12000 -> 0.04 | C19: 12000 | D19: 40 | E19: 480 | F19: 2400
A20: …Power | B20: 0.2620833333 | C20: 12000 | D20: 262.0833333 | E20: 3145 | F20: 1560
A21: Expenses: | B21: =SUM(B17:B20) -> 1.219923333 | D21: =SUM(D17:D20) -> 1219.923333 | E21: =SUM(E17:E20) -> 14639.08 | F21: =SUM(F17:F20) -> 13515.82
A22: Reimbursable Expenses: | B22: 0 | D22: 0 | E22: =C22*12 -> 0
A23: Total Expenses: | B23: =SUM(B21:B22) -> 1.219923333 | D23: =SUM(D21:D22) -> 1219.923333 | E23: =E21 -> 14639.08 | F23: =F21 -> 13515.82
A24: Total Profit: | E24: =E11-E23 -> 113760.92 | F24: =F15 -> 102461.96

Sheet 2025
F1: Cost Per Sq Ft
A2: 25150 Canal Rd. Back Storage Units
A3: Tenants
B4: $/sf YTD | C4: SF | D4: Monthly | E4: 2025 | F4: 2024 Monthly
A5: Storage Unit Rents | B5: =E5/C5*1.2 -> 10.8 | C5: 12000 | D5: 8600 | E5: 108000 | F5: 1854
A6: Parking Space Rents | C6: 0 | D6: 725 | E6: 10285 | F6: 1200
A7: Shipping Container & Covered Space | C7: 0 | D7: 1850 | E7: 19200 | F7: 1250.09
C8: 0 | F8: 2521
C9: 0 | F9: 2433.33
F10: 500
A11: Total SF | B11: =E11/C11*1.2 -> 13.7485 | C11: 12000 | D11: =SUM(D5:D10) -> 11175 | E11: =SUM(E5:E10) -> 137485
A12: Income:
A13: Gross Income Effective Gross | E13: =E11 -> 137485 | F13: =SUM(F5:F10)*12 -> 117101.04
A14: Income Total Expenses | E14: =E23 -> 14437.2 | F14: =$E23 -> 14437.2
A15: Net Operating Income | E15: =E13-E14 -> 123047.8 | F15: =F13-F14 -> 102663.84
A16: Expenses: | B16: Per Square Foot | C16: SF | D16: Monthly | E16: 2025 YTD
A17: Taxes | B17: =E17/C17 -> 0.6175 | C17: 12000 | D17: =E17/12 -> 617.5 | E17: 7410 | F17: 6155.82
A18: Insurance | B18: =E18/12000 -> 0.3 | C18: 12000 | D18: =E18/12 -> 300 | E18: 3600 | F18: 3400
A19: Water | B19: =E19/12000 -> 0.04 | C19: 12000 | D19: 40 | E19: 480 | F19: 2400
A20: …Power | B20: 0.2456 | C20: 12000 | D20: 245.6 | E20: 2947.2 | F20: 1560
A21: Expenses: | B21: =SUM(B17:B20) -> 1.2031 | D21: =SUM(D17:D20) -> 1203.1 | E21: =SUM(E17:E20) -> 14437.2 | F21: =SUM(F17:F20) -> 13515.82
A22: Reimbursable Expenses: | B22: 0 | D22: 0 | E22: =C22*12 -> 0
A23: Total Expenses: | B23: =SUM(B21:B22) -> 1.2031 | D23: =SUM(D21:D22) -> 1203.1 | E23: =E21 -> 14437.2 | F23: =F21 -> 13515.82
A24: Total Profit: | E24: =E11-E23 -> 123047.8 | F24: =F15 -> 102663.84

Sheet 2026
F1: Cost Per Sq Ft
A2: 25150 Canal Rd. Back Storage Units
A3: Tenants
B4: $/sf YTD | C4: SF | D4: Monthly | E4: 2026 | F4: 2024 Monthly
A5: Storage Unit Rents | B5: =E5/C5*1.2 -> 13.2 | C5: 12000 | D5: =E5/12 -> 11000 | E5: 132000 | F5: 1854
A6: Parking Space Rents | C6: 0 | D6: 1035 | E6: 12420 | F6: 1200
A7: Shipping Container & Covered Space | C7: 0 | D7: =E7/12 -> 2150 | E7: 25800 | F7: 1250.09
C8: 0 | F8: 2521
C9: 0 | F9: 2433.33
F10: 500
A11: Total SF | B11: =E11/C11*1.2 -> 17.022 | C11: 12000 | D11: =SUM(D5:D10) -> 14185 | E11: =SUM(E5:E10) -> 170220
A12: Income:
A13: Gross Income Effective Gross | E13: =E11 -> 170220 | F13: =SUM(F5:F10)*12 -> 117101.04
A14: Income Total Expenses | E14: =E23 -> 14437.2 | F14: =$E23 -> 14437.2
A15: Net Operating Income | E15: =E13-E14 -> 155782.8 | F15: =F13-F14 -> 102663.84
A16: Expenses: | B16: Per Square Foot | C16: SF | D16: Monthly | E16: 2025 YTD
A17: Taxes | B17: =E17/C17 -> 0.6175 | C17: 12000 | D17: =E17/12 -> 617.5 | E17: 7410 | F17: 6155.82
A18: Insurance | B18: =E18/12000 -> 0.3 | C18: 12000 | D18: =E18/12 -> 300 | E18: 3600 | F18: 3400
A19: Water | B19: =E19/12000 -> 0.04 | C19: 12000 | D19: 40 | E19: 480 | F19: 2400
A20: …Power | B20: 0.2456 | C20: 12000 | D20: 245.6 | E20: 2947.2 | F20: 1560
A21: Expenses: | B21: =SUM(B17:B20) -> 1.2031 | D21: =SUM(D17:D20) -> 1203.1 | E21: =SUM(E17:E20) -> 14437.2 | F21: =SUM(F17:F20) -> 13515.82
A22: Reimbursable Expenses: | B22: 0 | D22: 0 | E22: =C22*12 -> 0
A23: Total Expenses: | B23: =SUM(B21:B22) -> 1.2031 | D23: =SUM(D21:D22) -> 1203.1 | E23: =E21 -> 14437.2 | F23: =F21 -> 13515.82
A24: Total Profit: | E24: =E11-E23 -> 155782.8 | F24: =F15 -> 102663.84
